[Event "NJSK 2022 Jeugd C"]
[Site "Almelo, Netherlands"]
[Date "2022.05.07"]
[Round "9.4"]
[White "Smeets, Kobe"]
[Black "Zecha, Oscar"]
[Result "1-0"]
[TimeControl "90min + 30sec/move"]
[WhiteElo "1984"]
[BlackElo "1826"]

1. e4 {[%clk 01:30:58]} {[%emt 00:00:02]} e5 {[%clk 01:30:59]} {[%emt
00:00:01]} 2. Nf3 {[%clk 01:31:22]} {[%emt 00:00:05]} Nc6 {[%clk 01:31:27]}
{[%emt 00:00:02]} 3. Bb5 {[%clk 01:31:47]} {[%emt 00:00:06]} Nf6 {[%clk
01:31:53]} {[%emt 00:00:04]} 4. d3 {[%clk 01:32:14]} {[%emt 00:00:04]} Bc5
{[%clk 01:32:15]} {[%emt 00:00:08]} 5. c3 {[%clk 01:32:39]} {[%emt 00:00:04]}
a6 {[%clk 01:25:07]} {[%emt 00:07:37]} 6. Ba4 {[%clk 01:31:42]} {[%emt
00:01:27]} h6 {[%clk 01:22:14]} {[%emt 00:03:23]} 7. O-O {[%clk 01:31:36]}
{[%emt 00:00:36]} O-O {[%clk 01:20:49]} {[%emt 00:01:56]} 8. d4 {[%clk
01:29:50]} {[%emt 00:02:15]} Ba7 {[%clk 01:16:10]} {[%emt 00:05:09]} 9. Re1
{[%clk 01:25:39]} {[%emt 00:04:41]} d6 {[%clk 01:14:19]} {[%emt 00:02:22]} 10.
h3 {[%clk 01:24:18]} {[%emt 00:01:50]} b5 {[%clk 01:13:17]} {[%emt 00:01:32]}
11. Bc2 {[%clk 01:20:25]} {[%emt 00:04:24]} Bb7 {[%clk 01:07:34]} {[%emt
00:06:13]} 12. d5 {[%clk 01:10:30]} {[%emt 00:10:25]} Ne7 {[%clk 01:06:01]}
{[%emt 00:02:02]} 13. Nbd2 {[%clk 01:10:35]} {[%emt 00:00:25]} Ng6 {[%clk
00:59:17]} {[%emt 00:07:14]} 14. Nf1 {[%clk 01:09:52]} {[%emt 00:01:13]} Qe7
{[%clk 00:56:24]} {[%emt 00:03:23]} 15. Ng3 {[%clk 01:07:41]} {[%emt 00:02:42]}
Bc8 {[%clk 00:50:46]} {[%emt 00:06:08]} 16. a4 {[%clk 00:58:21]} {[%emt
00:09:50]} Bd7 {[%clk 00:48:40]} {[%emt 00:02:36]} 17. Nf5 {[%clk 00:52:46]}
{[%emt 00:06:05]} Qd8 {[%clk 00:45:00]} {[%emt 00:04:09]} 18. Nh2 {[%clk
00:51:00]} {[%emt 00:02:17]} Bxf5 {[%clk 00:37:12]} {[%emt 00:08:17]} 19. exf5
{[%clk 00:51:15]} {[%emt 00:00:15]} Ne7 {[%clk 00:37:26]} {[%emt 00:00:17]} 20.
Qf3 {[%clk 00:30:12]} {[%emt 00:21:32]} Nexd5 {[%clk 00:32:10]} {[%emt
00:05:45]} 21. Ng4 {[%clk 00:29:55]} {[%emt 00:00:48]} Nxg4 {[%clk 00:30:07]}
{[%emt 00:02:33]} 22. hxg4 {[%clk 00:30:20]} {[%emt 00:00:05]} Nb6 {[%clk
00:27:00]} {[%emt 00:03:38]} 23. a5 {[%clk 00:30:25]} {[%emt 00:00:26]} Nd7
{[%clk 00:26:23]} {[%emt 00:01:05]} 24. g5 {[%clk 00:24:31]} {[%emt 00:06:24]}
hxg5 {[%clk 00:21:03]} {[%emt 00:05:50]} 25. Qg3 {[%clk 00:24:20]} {[%emt
00:00:41]} Nc5 {[%clk 00:16:30]} {[%emt 00:05:03]} 26. Bxg5 {[%clk 00:24:11]}
{[%emt 00:00:39]} f6 {[%clk 00:16:38]} {[%emt 00:00:22]} 27. Bh6 {[%clk
00:24:18]} {[%emt 00:00:23]} Qd7 {[%clk 00:16:14]} {[%emt 00:00:54]} 28. b4
{[%clk 00:23:51]} {[%emt 00:00:58]} Na4 {[%clk 00:16:03]} {[%emt 00:00:40]} 29.
Bb3+ {[%clk 00:24:09]} {[%emt 00:00:13]} Kh8 {[%clk 00:14:44]} {[%emt
00:01:48]} 30. Be6 {[%clk 00:22:38]} {[%emt 00:02:01]} Qe7 {[%clk 00:14:11]}
{[%emt 00:01:03]} 31. Bg5 {[%clk 00:13:08]} {[%emt 00:10:00]} g6 {[%clk
00:12:54]} {[%emt 00:01:48]} 32. Qh4+ {[%clk 00:13:31]} {[%emt 00:00:06]} Qh7
{[%clk 00:12:26]} {[%emt 00:00:58]} 33. Bxf6+ {[%clk 00:13:54]} {[%emt
00:00:08]} Rxf6 {[%clk 00:12:36]} {[%emt 00:00:19]} 34. Qxf6+ {[%clk 00:14:19]}
{[%emt 00:00:05]} Qg7 {[%clk 00:13:00]} {[%emt 00:00:06]} 35. Qxg6 {[%clk
00:14:12]} {[%emt 00:00:38]} Qxg6 {[%clk 00:13:05]} {[%emt 00:00:25]} 36. fxg6
{[%clk 00:14:37]} {[%emt 00:00:04]} Nxc3 {[%clk 00:12:02]} {[%emt 00:01:33]} 37.
Rac1 {[%clk 00:13:25]} {[%emt 00:01:42]} Bd4 {[%clk 00:11:58]} {[%emt
00:00:34]} 38. g4 {[%clk 00:13:13]} {[%emt 00:00:43]} c5 {[%clk 00:11:26]}
{[%emt 00:01:02]} 39. bxc5 {[%clk 00:13:12]} {[%emt 00:00:31]} dxc5 {[%clk
00:11:42]} {[%emt 00:00:13]} 40. Kg2 {[%clk 00:11:48]} {[%emt 00:01:54]} Kg7
{[%clk 00:10:33]} {[%emt 00:01:39]} 41. Rh1 {[%clk 00:10:07]} {[%emt 00:02:12]}
Ne2 {[%clk 00:09:36]} {[%emt 00:01:27]} 42. Rh7+ {[%clk 00:08:38]} {[%emt
00:01:58]} Kxg6 {[%clk 00:06:07]} {[%emt 00:03:59]} 43. Bf5+ {[%clk 00:09:02]}
{[%emt 00:00:05]} Kg5 {[%clk 00:04:46]} {[%emt 00:01:51]} 44. Rch1 {[%clk
00:09:05]} {[%emt 00:00:27]} Kf4 {[%clk 00:04:53]} {[%emt 00:00:23]} 45. Rf7
{[%clk 00:08:59]} {[%emt 00:00:36]} Nc3 {[%clk 00:04:09]} {[%emt 00:01:14]} 46.
Bd3+ {[%clk 00:06:43]} {[%emt 00:02:47]} Kg5 {[%clk 00:03:47]} {[%emt
00:00:51]} 47. Rh5+ {[%clk 00:06:59]} {[%emt 00:00:15]} Kxg4 {[%clk 00:04:03]}
{[%emt 00:00:13]} 48. Rh3 {[%clk 00:07:26]} {[%emt 00:00:03]} 1-0

[Event "NJSK 2022 Jeugd C"]
[Site "Almelo, Netherlands"]
[Date "2022.05.07"]
[Round "9.5"]
[White "Madularea, David"]
[Black "Zhu, Chenwu"]
[Result "1-0"]
[TimeControl "90min + 30sec/move"]
[WhiteElo "1774"]
[BlackElo "1968"]

1. e4 {[%clk 01:30:57]} {[%emt 00:00:01]} e5 {[%clk 01:30:53]} {[%emt
00:00:08]} 2. Nf3 {[%clk 01:31:10]} {[%emt 00:00:18]} Nc6 {[%clk 01:31:19]}
{[%emt 00:00:04]} 3. Bb5 {[%clk 01:31:32]} {[%emt 00:00:08]} a6 {[%clk
01:31:22]} {[%emt 00:00:27]} 4. Ba4 {[%clk 01:31:52]} {[%emt 00:00:09]} Nf6
{[%clk 01:31:43]} {[%emt 00:00:10]} 5. O-O {[%clk 01:32:06]} {[%emt 00:00:15]}
b5 {[%clk 01:32:00]} {[%emt 00:00:14]} 6. Bb3 {[%clk 01:32:31]} {[%emt
00:00:04]} Bc5 {[%clk 01:32:19]} {[%emt 00:00:13]} 7. c3 {[%clk 01:31:26]}
{[%emt 00:01:33]} d6 {[%clk 01:32:28]} {[%emt 00:00:22]} 8. h3 {[%clk
01:31:02]} {[%emt 00:00:53]} O-O {[%clk 01:30:32]} {[%emt 00:02:27]} 9. Re1
{[%clk 01:29:07]} {[%emt 00:02:23]} Bb6 {[%clk 01:28:52]} {[%emt 00:02:11]} 10.
d3 {[%clk 01:25:45]} {[%emt 00:03:52]} h6 {[%clk 01:26:45]} {[%emt 00:02:37]}
11. Nbd2 {[%clk 01:20:20]} {[%emt 00:05:54]} Ne7 {[%clk 01:23:50]} {[%emt
00:03:26]} 12. Nf1 {[%clk 01:14:07]} {[%emt 00:06:43]} Ng6 {[%clk 01:21:32]}
{[%emt 00:02:49]} 13. Ng3 {[%clk 01:12:29]} {[%emt 00:02:07]} c5 {[%clk
01:20:57]} {[%emt 00:01:05]} 14. Bc2 {[%clk 01:05:30]} {[%emt 00:07:29]} Re8
{[%clk 01:17:17]} {[%emt 00:04:10]} 15. Be3 {[%clk 00:58:14]} {[%emt 00:07:47]}
d5 {[%clk 01:13:21]} {[%emt 00:04:26]} 16. d4 {[%emt 00:05:00]} exd4 {[%clk
01:08:48]} {[%emt 00:05:01]} 17. cxd4 {[%clk 00:53:51]} {[%emt 00:00:24]} Ba5
{[%clk 01:03:24]} {[%emt 00:05:54]} 18. Bd2 {[%clk 00:52:24]} {[%emt 00:01:57]}
Bxd2 {[%clk 00:56:52]} {[%emt 00:07:02]} 19. Qxd2 {[%clk 00:51:54]} {[%emt
00:01:00]} c4 {[%clk 00:54:54]} {[%emt 00:02:28]} 20. e5 {[%clk 00:51:02]}
{[%emt 00:01:22]} Nh7 {[%clk 00:53:35]} {[%emt 00:01:49]} 21. Ne2 {[%clk
00:39:51]} {[%emt 00:11:41]} Nhf8 {[%clk 00:51:11]} {[%emt 00:02:54]} 22. Nc3
{[%clk 00:35:38]} {[%emt 00:04:43]} Be6 {[%clk 00:49:48]} {[%emt 00:01:54]} 23.
Re2 {[%clk 00:26:54]} {[%emt 00:09:13]} Qd7 {[%clk 00:48:32]} {[%emt 00:01:46]}
24. Kh2 {[%clk 00:25:52]} {[%emt 00:01:33]} Rad8 {[%clk 00:48:01]} {[%emt
00:01:00]} 25. Rf1 {[%clk 00:20:16]} {[%emt 00:06:05]} Bf5 {[%clk 00:47:26]}
{[%emt 00:01:06]} 26. Ne1 {[%clk 00:20:24]} {[%emt 00:00:22]} Bxc2 {[%clk
00:46:53]} {[%emt 00:01:03]} 27. Nxc2 {[%clk 00:20:44]} {[%emt 00:00:09]} Ne6
{[%clk 00:45:55]} {[%emt 00:01:29]} 28. f4 {[%clk 00:19:53]} {[%emt 00:01:21]}
Nc7 {[%clk 00:44:45]} {[%emt 00:01:40]} 29. f5 {[%clk 00:19:20]} {[%emt
00:01:03]} Nh8 {[%clk 00:42:50]} {[%emt 00:02:25]} 30. Re3 {[%clk 00:14:48]}
{[%emt 00:05:02]} Kh7 {[%clk 00:39:27]} {[%emt 00:03:53]} 31. Rg3 {[%clk
00:13:44]} {[%emt 00:01:35]} Rb8 {[%clk 00:35:23]} {[%emt 00:04:34]} 32. Rf4
{[%clk 00:13:15]} {[%emt 00:00:58]} f6 {[%clk 00:28:17]} {[%emt 00:07:36]} 33.
exf6 {[%clk 00:12:41]} {[%emt 00:01:04]} g5 {[%clk 00:21:04]} {[%emt 00:07:43]}
34. fxg6+ {[%clk 00:12:39]} {[%emt 00:00:32]} Nxg6 {[%clk 00:21:17]} {[%emt
00:00:18]} 35. Rfg4 {[%clk 00:12:10]} {[%emt 00:00:59]} Rg8 {[%clk 00:20:51]}
{[%emt 00:00:55]} 36. h4 {[%clk 00:08:39]} {[%emt 00:04:01]} Qf5 {[%clk
00:18:45]} {[%emt 00:02:37]} 37. h5 {[%clk 00:08:13]} {[%emt 00:00:56]} Qxf6
{[%clk 00:12:19]} {[%emt 00:06:56]} 38. hxg6+ {[%clk 00:07:24]} {[%emt
00:01:17]} Kg7 {[%clk 00:11:50]} {[%emt 00:00:59]} 39. Rf4 {[%clk 00:07:35]}
{[%emt 00:00:19]} Rbf8 {[%clk 00:11:03]} {[%emt 00:01:18]} 40. Rxf6 {[%clk
00:07:52]} {[%emt 00:00:14]} Rxf6 {[%clk 00:11:29]} {[%emt 00:00:03]} 41. Qe3
{[%clk 00:07:26]} {[%emt 00:00:55]} Re8 {[%clk 00:11:39]} {[%emt 00:00:21]} 42.
Qd2 {[%clk 00:07:05]} {[%emt 00:00:51]} a5 {[%clk 00:11:35]} {[%emt 00:00:35]}
43. Ne3 {[%clk 00:06:56]} {[%emt 00:00:38]} b4 {[%clk 00:11:38]} {[%emt
00:00:27]} 44. Ncxd5 {[%clk 00:06:55]} {[%emt 00:00:31]} Nxd5 {[%clk 00:11:47]}
{[%emt 00:00:21]} 45. Nxd5 {[%clk 00:07:20]} {[%emt 00:00:05]} Rd6 {[%clk
00:11:59]} {[%emt 00:00:18]} 46. Qf4 {[%clk 00:07:36]} {[%emt 00:00:14]} Rd7
{[%clk 00:11:42]} {[%emt 00:00:48]} 47. Qf6+ {[%clk 00:07:09]} {[%emt
00:00:56]} Kg8 {[%clk 00:12:06]} {[%emt 00:00:05]} 48. Rh3 {[%clk 00:07:11]}
{[%emt 00:00:29]} 1-0

[Event "NJSK 2022 Jeugd C"]
[Site "Almelo, Netherlands"]
[Date "2022.05.07"]
[Round "9.6"]
[White "Lopes, Samuel"]
[Black "Dekker, Thiemen"]
[Result "1/2-1/2"]
[TimeControl "90min + 30sec/move"]
[WhiteElo "1600"]
[BlackElo "1935"]

1. e4 {[%clk 01:30:57]} {[%emt 00:00:02]} e5 {[%clk 01:30:57]} {[%emt
00:00:04]} 2. Bc4 {[%clk 01:31:18]} {[%emt 00:00:08]} Nf6 {[%clk 01:31:21]}
{[%emt 00:00:06]} 3. d3 {[%clk 01:31:44]} {[%emt 00:00:04]} Nc6 {[%clk
01:31:19]} {[%emt 00:00:32]} 4. Nc3 {[%clk 01:32:03]} {[%emt 00:00:11]} Bc5
{[%clk 01:31:12]} {[%emt 00:00:39]} 5. f4 {[%clk 01:32:21]} {[%emt 00:00:10]}
d6 {[%clk 01:31:34]} {[%emt 00:00:08]} 6. Nf3 {[%clk 01:32:24]} {[%emt
00:00:27]} Bg4 {[%clk 01:29:55]} {[%emt 00:02:10]} 7. h3 {[%clk 01:32:34]}
{[%emt 00:00:19]} Bxf3 {[%clk 01:29:52]} {[%emt 00:00:33]} 8. Qxf3 {[%clk
01:32:32]} {[%emt 00:00:32]} Nd4 {[%clk 01:29:41]} {[%emt 00:00:41]} 9. Qd1
{[%clk 01:32:07]} {[%emt 00:00:55]} Nd7 {[%clk 01:26:31]} {[%emt 00:03:41]} 10.
g3 {[%clk 01:26:35]} {[%emt 00:06:02]} exf4 {[%clk 01:23:22]} {[%emt 00:03:38]}
11. Bxf4 {[%clk 01:25:18]} {[%emt 00:01:47]} Ne5 {[%clk 01:22:05]} {[%emt
00:01:48]} 12. Bxe5 {[%clk 01:23:09]} {[%emt 00:02:38]} dxe5 {[%clk 01:22:31]}
{[%emt 00:00:05]} 13. Rf1 {[%clk 01:20:24]} {[%emt 00:03:15]} O-O {[%clk
01:21:10]} {[%emt 00:01:51]} 14. Qd2 {[%clk 01:06:14]} {[%emt 00:14:39]} c6
{[%clk 01:19:53]} {[%emt 00:01:47]} 15. a3 {[%clk 00:56:45]} {[%emt 00:10:00]}
a5 {[%clk 01:18:31]} {[%emt 00:01:52]} 16. Ne2 {[%clk 00:50:41]} {[%emt
00:06:35]} Qb6 {[%clk 01:13:02]} {[%emt 00:05:57]} 17. c3 {[%clk 00:37:49]}
{[%emt 00:13:23]} Nb3 {[%clk 01:12:03]} {[%emt 00:01:30]} 18. Bxb3 {[%clk
00:37:54]} {[%emt 00:00:24]} Qxb3 {[%clk 01:12:27]} {[%emt 00:00:06]} 19. Rf5
{[%clk 00:35:03]} {[%emt 00:03:21]} Qe6 {[%clk 01:06:29]} {[%emt 00:06:29]} 20.
Qg5 {[%clk 00:28:53]} {[%emt 00:06:38]} f6 {[%clk 01:03:32]} {[%emt 00:03:28]}
21. Qh4 {[%clk 00:27:40]} {[%emt 00:01:43]} g6 {[%clk 01:01:37]} {[%emt
00:02:25]} 22. Qg4 {[%clk 00:26:28]} {[%emt 00:01:41]} Kh8 {[%clk 00:56:58]}
{[%emt 00:05:10]} 23. Rf3 {[%clk 00:20:42]} {[%emt 00:06:15]} Qxg4 {[%clk
00:55:05]} {[%emt 00:02:24]} 24. hxg4 {[%clk 00:21:07]} {[%emt 00:00:06]} b5
{[%clk 00:49:00]} {[%emt 00:06:34]} 25. d4 {[%clk 00:18:29]} {[%emt 00:03:08]}
Be7 {[%clk 00:46:00]} {[%emt 00:03:30]} 26. a4 {[%clk 00:15:00]} {[%emt
00:03:59]} b4 {[%clk 00:42:44]} {[%emt 00:03:45]} 27. c4 {[%clk 00:15:05]}
{[%emt 00:00:25]} exd4 {[%clk 00:41:09]} {[%emt 00:02:05]} 28. Nxd4 {[%clk
00:14:17]} {[%emt 00:01:19]} c5 {[%clk 00:31:37]} {[%emt 00:10:02]} 29. Nb5
{[%clk 00:10:33]} {[%emt 00:04:13]} Rac8 {[%clk 00:29:06]} {[%emt 00:03:02]} 30.
Rd1 {[%clk 00:10:03]} {[%emt 00:01:00]} Rfd8 {[%clk 00:26:11]} {[%emt
00:03:26]} 31. Rfd3 {[%clk 00:08:55]} {[%emt 00:01:37]} Rxd3 {[%clk 00:25:35]}
{[%emt 00:01:05]} 32. Rxd3 {[%clk 00:09:22]} {[%emt 00:00:03]} Rd8 {[%clk
00:25:19]} {[%emt 00:00:47]} 33. Rxd8+ {[%clk 00:09:21]} {[%emt 00:00:30]} Bxd8
{[%clk 00:25:35]} {[%emt 00:00:15]} 34. Kf2 {[%clk 00:09:15]} {[%emt 00:00:36]}
Kg8 {[%clk 00:17:27]} {[%emt 00:08:38]} 35. Kf3 {[%clk 00:06:30]} {[%emt
00:03:14]} Kf7 {[%clk 00:15:55]} {[%emt 00:02:02]} 36. b3 {[%clk 00:05:21]}
{[%emt 00:01:39]} Ke6 {[%clk 00:14:58]} {[%emt 00:01:27]} 37. Kf4 {[%clk
00:04:29]} {[%emt 00:01:23]} Bb6 {[%clk 00:13:02]} {[%emt 00:02:26]} 38. Ke3
{[%clk 00:03:52]} {[%emt 00:01:06]} Ke5 {[%clk 00:11:58]} {[%emt 00:01:35]} 39.
Kf3 {[%clk 00:04:11]} {[%emt 00:00:10]} Bd8 {[%clk 00:09:52]} {[%emt 00:02:36]}
40. Ke3 {[%clk 00:03:19]} {[%emt 00:01:23]} f5 {[%clk 00:04:34]} {[%emt
00:05:49]} 41. exf5 {[%clk 00:02:20]} {[%emt 00:01:29]} gxf5 {[%clk 00:04:36]}
{[%emt 00:00:28]} 42. gxf5 {[%clk 00:02:42]} {[%emt 00:00:08]} Kxf5 {[%clk
00:04:12]} {[%emt 00:00:54]} 43. Kf3 {[%clk 00:02:41]} {[%emt 00:00:31]} h5
{[%clk 00:02:58]} {[%emt 00:01:44]} 44. Nd6+ {[%clk 00:02:29]} {[%emt
00:00:42]} Ke6 {[%clk 00:02:19]} {[%emt 00:01:09]} 45. Nb5 {[%clk 00:02:24]}
{[%emt 00:00:34]} Ke5 {[%clk 00:02:17]} {[%emt 00:00:32]} 46. Ke3 {[%clk
00:02:18]} {[%emt 00:00:37]} Bg5+ {[%clk 00:01:14]} {[%emt 00:01:32]} 47. Kf3
{[%clk 00:02:07]} {[%emt 00:00:41]} Bd8 {[%clk 00:01:33]} {[%emt 00:00:12]} 48.
Ke3 {[%clk 00:02:29]} {[%emt 00:00:07]} Bg5+ {[%clk 00:01:50]} {[%emt
00:00:15]} 49. Kf3 {[%clk 00:02:54]} {[%emt 00:00:04]} Bd8 {[%clk 00:00:45]}
{[%emt 00:01:35]} 1/2-1/2

[Event "NJSK 2022 Jeugd C"]
[Site "Almelo, Netherlands"]
[Date "2022.05.07"]
[Round "9.7"]
[White "Kurt, Sascha"]
[Black "Venema, Maxime"]
[Result "1-0"]
[TimeControl "90min + 30sec/move"]
[WhiteElo "1834"]
[BlackElo "1614"]

1. e4 {[%clk 01:30:57]} {[%emt 00:00:02]} c5 {[%clk 01:30:52]} {[%emt
00:00:09]} 2. Nf3 {[%clk 01:31:22]} {[%emt 00:00:05]} d6 {[%clk 01:31:07]}
{[%emt 00:00:15]} 3. d4 {[%clk 01:31:48]} {[%emt 00:00:05]} cxd4 {[%clk
01:31:23]} {[%emt 00:00:14]} 4. Nxd4 {[%clk 01:32:13]} {[%emt 00:00:05]} Nf6
{[%clk 01:31:35]} {[%emt 00:00:17]} 5. Nc3 {[%clk 01:32:38]} {[%emt 00:00:06]}
a6 {[%clk 01:31:56]} {[%emt 00:00:09]} 6. f4 {[%clk 01:32:49]} {[%emt
00:00:21]} e5 {[%clk 01:32:01]} {[%emt 00:00:25]} 7. Nf3 {[%clk 01:33:13]}
{[%emt 00:00:04]} Qc7 {[%clk 01:31:02]} {[%emt 00:01:28]} 8. a4 {[%clk
01:32:30]} {[%emt 00:01:13]} Be7 {[%clk 01:31:02]} {[%emt 00:00:30]} 9. Bd3
{[%clk 01:32:29]} {[%emt 00:00:32]} Be6 {[%clk 01:29:43]} {[%emt 00:01:49]} 10.
O-O {[%clk 01:31:41]} {[%emt 00:01:18]} O-O {[%clk 01:28:54]} {[%emt 00:01:19]}
11. Kh1 {[%clk 01:30:51]} {[%emt 00:01:19]} Nbd7 {[%clk 01:25:43]} {[%emt
00:03:41]} 12. Qe1 {[%clk 01:28:12]} {[%emt 00:03:10]} h6 {[%clk 01:25:19]}
{[%emt 00:00:54]} 13. fxe5 {[%clk 01:24:24]} {[%emt 00:04:18]} Nxe5 {[%clk
01:25:13]} {[%emt 00:00:36]} 14. Nh4 {[%clk 01:22:56]} {[%emt 00:01:58]} Rac8
{[%clk 01:22:50]} {[%emt 00:02:53]} 15. Nf5 {[%clk 01:21:34]} {[%emt 00:01:51]}
Bxf5 {[%clk 01:21:42]} {[%emt 00:01:38]} 16. Rxf5 {[%clk 01:21:18]} {[%emt
00:00:46]} Rfd8 {[%clk 01:19:57]} {[%emt 00:02:16]} 17. Qg3 {[%clk 01:20:00]}
{[%emt 00:01:46]} Ng6 {[%clk 01:18:19]} {[%emt 00:02:09]} 18. h4 {[%clk
01:15:58]} {[%emt 00:04:33]} Kh7 {[%clk 01:15:43]} {[%emt 00:03:06]} 19. h5
{[%clk 01:13:25]} {[%emt 00:03:03]} Ne5 {[%clk 01:14:15]} {[%emt 00:01:57]} 20.
Nd5 {[%clk 01:10:52]} {[%emt 00:03:03]} Nxd5 {[%clk 01:14:16]} {[%emt
00:00:29]} 21. exd5 {[%clk 01:10:28]} {[%emt 00:00:54]} Nxd3 {[%clk 01:13:52]}
{[%emt 00:00:55]} 22. Rxf7 {[%clk 01:08:57]} {[%emt 00:02:01]} Nf2+ {[%clk
01:11:08]} {[%emt 00:03:14]} 23. Rxf2 {[%clk 01:08:16]} {[%emt 00:01:11]} Bf6
{[%clk 01:08:39]} {[%emt 00:02:58]} 24. Qg6+ {[%clk 01:07:01]} {[%emt
00:01:45]} Kh8 {[%clk 01:08:57]} {[%emt 00:00:12]} 25. Bxh6 {[%clk 01:06:01]}
{[%emt 00:01:30]} Qc4 {[%clk 01:07:50]} {[%emt 00:01:37]} 26. Bg5 {[%clk
01:00:14]} {[%emt 00:06:14]} Bxg5 {[%clk 01:06:36]} {[%emt 00:01:47]} 27. Qxg5
{[%clk 00:59:49]} {[%emt 00:00:55]} Qd4 {[%clk 01:06:28]} {[%emt 00:00:38]} 28.
h6 {[%clk 00:50:30]} {[%emt 00:09:49]} Qxb2 {[%clk 01:01:45]} {[%emt 00:05:14]}
29. Raf1 {[%clk 00:49:50]} {[%emt 00:01:10]} Qe5 {[%clk 00:58:58]} {[%emt
00:03:16]} 30. Rf5 {[%clk 00:49:26]} {[%emt 00:00:53]} Qd4 {[%clk 00:58:45]}
{[%emt 00:00:45]} 31. Rf7 {[%clk 00:48:41]} {[%emt 00:01:15]} g6 {[%clk
00:57:11]} {[%emt 00:02:05]} 32. Qe7 {[%clk 00:48:10]} {[%emt 00:01:00]} Qe5
{[%clk 00:56:05]} {[%emt 00:01:36]} 33. Rh7+ {[%clk 00:48:31]} {[%emt
00:00:08]} Kg8 {[%clk 00:56:30]} {[%emt 00:00:06]} 34. Qf7# {[%emt 00:00:20]}
1-0